Workbook

Sheet Инструкция
AA1: (требуется обновление)
B2: ="Код шаблона: " & GetCode() -> Код шаблона: 46EP.STX
B3: ="Версия " & GetVersion() -> Версия 1.0
B5: Сведения об отпуске (передаче) электроэнергии распределительными сетевыми организациями отдельным категориям потребителей Приказ Росстата: Об утверждении формы от 05.09.2018 № 543
E7: • На рабочем месте должен быть установлен MS Office 2007 SP3, 2010, 2013, 2016 с полной версией MS Excel • Макросы во время работы должны быть включены (!) • Для корректной работы отчёта требуется выбрать низкий уровень безопасности (В меню MS Excel 2007/2010/2013/2016: Параметры Excel | Центр управления безопасностью | Параметры центра управления безопасностью | Параметры макросов | Включить все макросы | ОК) • Если Вы работаете в табличном процессоре MS Excel 2007 и выше, то можете использовать для работы формат XLSB (Двоичная книга Excel). При работе в формате XLSB заметно быстрее происходит сохранение файла, а также уменьшается размер по сравнению с форматами XLS и XLSM • Не рекомендуется снимать защиту с листов и каким-либо образом модифицировать защищаемые формулы и расчётные поля, в противном случае, отчёт будет отклонён системой • При сохранении не следует выбирать формат XLSX (Книга Excel), так как в указанном формате макросы, необходимые для работы отчёта, безвозвратно удаляются
E21: A | F21: - предназначенные для заполнения | O21: A | P21: - обязательные для заполнения поля
E22: A | F22: - с формулами и константами | O22: A | P22: - незаполняемые поля
E23: A | F23: - с выбором значений по двойному клику
E35: Если в предложенном Вам списке необходимая организация, МР/МО отсутствуют, обновите реестры с помощью кнопок В результате синхронизации с базой данных список организаций (МР/МО) будет заменён актуальным (механизм синхронизации требует подключения к сети Интернет и основан на использовании протокола HTTPS (TCP порт 443)) Если после обновления Вам не удалось найти необходимую организацию в списке, обратитесь к ответственному за поддержание реестра Вашего региона.
E46: • При сохранении шаблона осуществляется проверка корректности данных, в том числе на наличие значений в ячейках, обязательных для заполнения • Если какая-то ячейка не удовлетворяет условию проверки, на лист «Проверка» добавляется гиперссылка на данную ячейку и указывается причина ошибки • В колонке «Статус» для каждого сообщения возможны 2 значения: ошибка и предупреждение • При наличии сообщений со статусом «Ошибка» шаблон будет отклонён системой и не будет загружен в хранилище данных, сообщения со статусом «Предупреждение» носят информационный характер, и такой шаблон будет принят системой
E59: Консультации: | K59: Обратиться за помощью
E60: Дистрибутивы: | K60: Перейти
E70: Общие указания по заполнению:
E71: Указания по заполнению формы федерального статистического наблюдения
E73: Если срок предоставления отчета истек, необходимо загрузить в систему пояснительную записку и указать ссылку на нее на листе "Титульный" в поле "Ссылка на обосновывающие материалы"
E76: Обосновывающие материалы необходимо загружать с помощью "ЕИАС Мониторинг":
E77: Руководство по загрузке документов
E79: Пример пояснительной записки:
E80: Пояснительная записка
E87: Отчётные формы: | K87: Перейти к разделу
E89: Контакты специалистов ЦА ФАС России:
E90: ФИО: | K90: Максим Николаевич Пальянов
E91: E-mail: | K91: palyanovmn@fas.gov.ru
E93: ФИО: | K93: Игорь Владиславович Бедрин
E94: E-mail: | K94: bedrin@fas.gov.ru
E103: При наличии подключения к Интернет, можно автоматически проверять наличие доступных обновлений. Выберите способ оповещения о наличии обновлений для отчёта:
F105: проверять доступные обновления (рекомендуется) | AA105: y
F107: никогда не проверять наличие обновлений (не рекомендуется)

Sheet Лог обновления (hidden)
A2: 3/17/2012 12:12:41 AM | B2: Дата/Время | C2: Сообщение | D2: Статус
B3: 2019-07-16T11:12:16 | C3: Проверка доступных обновлений... | D3: Информация
B4: 2019-07-16T11:12:18 | C4: Нет доступных обновлений для отчёта с кодом 46EP.STX! | D4: Информация
B5: 2019-07-16T11:13:42 | C5: Проверка доступных обновлений... | D5: Информация
B6: 2019-07-16T11:13:43 | C6: Нет доступных обновлений для отчёта с кодом 46EP.STX! | D6: Информация
B7: 2019-07-16T11:14:16 | C7: Проверка доступных обновлений... | D7: Информация
B8: 2019-07-16T11:14:17 | C8: Нет доступных обновлений для отчёта с кодом 46EP.STX! | D8: Информация
B9: 2019-07-16T11:42:48 | C9: Проверка доступных обновлений... | D9: Информация
B10: 2019-07-16T11:42:49 | C10: Нет доступных обновлений для отчёта с кодом 46EP.STX! | D10: Информация
B11: 2019-08-15T10:22:13 | C11: Проверка доступных обновлений... | D11: Информация
B12: 2019-08-15T10:22:14 | C12: Нет доступных обновлений для отчёта с кодом 46EP.STX! | D12: Информация
B13: 2019-08-15T10:23:39 | C13: Проверка доступных обновлений... | D13: Информация
B14: 2019-08-15T10:23:41 | C14: Нет доступных обновлений для отчёта с кодом 46EP.STX! | D14: Информация
B15: 2019-09-12T11:24:04 | C15: Проверка доступных обновлений... | D15: Информация
B16: 2019-09-12T11:24:06 | C16: Нет доступных обновлений для отчёта с кодом 46EP.STX! | D16: Информация
B17: 2019-10-15T15:50:00 | C17: Проверка доступных обновлений... | D17: Информация
B18: 2019-10-15T15:50:01 | C18: Нет доступных обновлений для отчёта с кодом 46EP.STX! | D18: Информация
B19: 2019-11-15T11:36:41 | C19: Проверка доступных обновлений... | D19: Информация
B20: 2019-11-15T11:36:43 | C20: Нет доступных обновлений для отчёта с кодом 46EP.STX! | D20: Информация
B21: 2019-12-17T11:17:58 | C21: Проверка доступных обновлений... | D21: Информация
B22: 2019-12-17T11:18:00 | C22: Нет доступных обновлений для отчёта с кодом 46EP.STX! | D22: Информация
B23: 2019-12-17T11:19:00 | C23: Проверка доступных обновлений... | D23: Информация
B24: 2019-12-17T11:19:01 | C24: Нет доступных обновлений для отчёта с кодом 46EP.STX! | D24: Информация
B25: 2019-12-17T11:19:51 | C25: Проверка доступных обновлений... | D25: Информация
B26: 2019-12-17T11:19:52 | C26: Нет доступных обновлений для отчёта с кодом 46EP.STX! | D26: Информация
B27: 2020-01-15T14:34:31 | C27: Проверка доступных обновлений... | D27: Информация
B28: 2020-01-15T14:34:33 | C28: Нет доступных обновлений для отчёта с кодом 46EP.STX! | D28: Информация
B29: 2020-02-14T10:14:48 | C29: Проверка доступных обновлений... | D29: Информация
B30: 2020-02-14T10:14:49 | C30: Нет доступных обновлений для отчёта с кодом 46EP.STX! | D30: Информация
B31: 2020-03-17T11:10:24 | C31: Проверка доступных обновлений... | D31: Информация
B32: 2020-03-17T11:10:26 | C32: Нет доступных обновлений для отчёта с кодом 46EP.STX! | D32: Информация
B33: 2020-04-20T10:44:37 | C33: Проверка доступных обновлений... | D33: Информация
B34: 2020-04-20T10:44:38 | C34: Нет доступных обновлений для отчёта с кодом 46EP.STX! | D34: Информация
B35: 2020-05-20T08:30:41 | C35: Проверка доступных обновлений... | D35: Информация
B36: 2020-05-20T08:30:43 | C36: Нет доступных обновлений для отчёта с кодом 46EP.STX! | D36: Информация
B37: 2020-07-15T09:37:10 | C37: Проверка доступных обновлений... | D37: Информация
B38: 2020-07-15T09:37:11 | C38: Нет доступных обновлений для отчёта с кодом 46EP.STX! | D38: Информация
B39: 2020-07-15T09:45:35 | C39: Проверка доступных обновлений... | D39: Информация
B40: 2020-07-15T09:45:37 | C40: Нет доступных обновлений для отчёта с кодом 46EP.STX! | D40: Информация
B41: 2020-08-14T09:59:51 | C41: Проверка доступных обновлений... | D41: Информация
B42: 2020-08-14T09:59:53 | C42: Нет доступных обновлений для отчёта с кодом 46EP.STX! | D42: Информация
B43: 2020-09-21T10:17:49 | C43: Проверка доступных обновлений... | D43: Информация
B44: 2020-09-21T10:17:51 | C44: Нет доступных обновлений для отчёта с кодом 46EP.STX! | D44: Информация
B45: 2020-10-15T09:25:22 | C45: Проверка доступных обновлений... | D45: Информация
B46: 2020-10-15T09:25:23 | C46: Нет доступных обновлений для отчёта с кодом 46EP.STX! | D46: Информация
B47: 2020-11-16T09:40:06 | C47: Проверка доступных обновлений... | D47: Информация
B48: 2020-11-16T09:40:07 | C48: Нет доступных обновлений для отчёта с кодом 46EP.STX! | D48: Информация

Sheet Титульный
G7: =version -> Версия 1.0
E8: Сведения об отпуске (передаче) электроэнергии распределительными сетевыми организациями отдельным категориям потребителей
F10: Субъект РФ | G10: Смоленская область
G11: Отчетный период
F12: Год | G12: 2020
F13: Месяц | G13: год
F15: Наименование организации | G15: ООО "Горэлектро" | J15: 28505959
F16: ИНН | G16: 6732066794
F17: КПП | G17: 673201001
F18: Вид деятельности | G18: РСО
F20: Тип отчета | G20: В целом по организации
F21: Наименование обособленного подразделения
F23: ОКПО | G23: 23226847
F25: ОКАТО | G25: 66401000000
F27: Муниципальный район | G27: Город Смоленск
F28: Муниципальное образование | G28: Город Смоленск
F29: ОКТМО | G29: 66701000
F31: Котлодержатель | G31: Нет
F33: Плательщик НДС | G33: Да
G34: Адрес организации
F35: Юридический адрес: | G35: 214000, г. Смоленск, ул. Студенческая, д. 5
F36: Почтовый адрес: | G36: 214000, г. Смоленск, ул. Студенческая, д. 5
G37: Руководитель
F38: Фамилия, имя, отчество | G38: Бычков Дмитрий Александрович
F39: (код) номер телефона | G39: 89605842665
G40: Главный бухгалтер
F41: Фамилия, имя, отчество | G41: Буланенкова Оксана Валерьевна
F42: (код) номер телефона | G42: 83621917513
G43: Должностное лицо, ответственное за составление формы
F44: Фамилия, имя, отчество | G44: Маркадеева Анна Владимировна
F45: Должность | G45: заместитель генерального директора
F46: (код) номер телефона | G46: 89156362155
F47: e-mail | G47: gorelectro@mail.ru
F49: Максимальный интервал представления отчёта за прошедшие периоды (дней) | G49: 90
E56: Дата последнего обновления реестра МР/МО: 16.07.2019 11:14:49
E57: Дата последнего обновления реестра организаций: 16.11.2020 9:40:17
F59: Срок предоставления отчета истек | G59: Нет
F60: Ссылка на обосновывающие материалы

Sheet Отпуск ЭЭ сет организациями
F5: L1 | G5: L1.1 | H5: L1.2 | I5: L2 | J5: L2.1 | K5: L2.2 | L5: L3 | M5: L3.1 | N5: L3.1 | O5: L3.2 | P5: L4.1 | Q5: L4.2
D8: Сведения об отпуске (передаче) электроэнергии распределительными сетевыми организациями отдельным категориям потребителей
D9: =IF(org="","Не определено",org) -> ООО "Горэлектро"
K10: Коды по ОКЕИ: 1000 киловатт-часов – 246, мегаватт – 215, тысяча рублей – 384
D11: № п/п | E11: Наименование показателя | F11: Код строки | G11: Всего | H11: В том числе по уровню напряжения
H12: ВН | I12: СН1 | J12: СН2 | K12: НН
D13: 0 | E13: 1 | F13: 2 | G13: 3 | H13: 4 | I13: 5 | J13: 6 | K13: 7
D14: I. Электроэнергия (тыс. кВт ч)
D15: 1 | E15: Поступление в сеть из других организаций: | F15: 10 | G15: =SUM(H15:K15) -> 78478.309 | H15: =H16+H17+H20+H23 -> 7575.511 | I15: =I16+I17+I20+I23 -> 2365.192 | J15: =J16+J17+J20+J23 -> 52745.965 | K15: =K16+K17+K20+K23 -> 15791.641 | P15: 10
D16: 1.1 | E16: из сетей ПАО "ФСК ЕЭС" | F16: 20 | G16: =SUM(H16:K16) -> 1664.796 | J16: 1664.796 | P16: 20
D17: 1.2 | E17: от генерирующих компаний и блок-станций: | F17: 30 | G17: 0 | H17: =SUM(H18:H19) -> 0 | I17: =SUM(I18:I19) -> 0 | J17: =SUM(J18:J19) -> 0 | K17: =SUM(K18:K19) -> 0 | P17: 30
D18: 1.2.0 | F18: 30
E19: Добавить организацию
D20: 1.3 | E20: от несетевых организаций: | F20: 230 | G20: 0 | H20: =SUM(H21:H22) -> 0 | I20: =SUM(I21:I22) -> 0 | J20: =SUM(J21:J22) -> 0 | K20: =SUM(K21:K22) -> 0
D21: 1.3.0 | F21: 230
E22: Добавить организацию
D23: 1.4 | E23: от смежных сетевых организаций: | F23: 430 | G23: 76813.513 | H23: =SUM(H24:H28) -> 7575.511 | I23: =SUM(I24:I28) -> 2365.192 | J23: =SUM(J24:J28) -> 51081.169 | K23: =SUM(K24:K28) -> 15791.641 | P23: 40
D24: 1.4.0 | F24: 430
C25: О | D25: 1.4.1 | E25: ПАО "МРСК центра" (на территории Смоленской области) | F25: 431 | G25: =SUM(H25:K25) -> 72872.658 | H25: 7575.511 | I25: 2365.192 | J25: 47140.314 | K25: 15791.641 | M25: 6901067107 | N25: 673102001 | O25: 26322017
C26: О | D26: 1.4.2 | E26: ОГУЭПП "Смоленскоблкоммунэнерго" | F26: 432 | G26: =SUM(H26:K26) -> 144.58 | H26: 0 | I26: 0 | J26: 144.58 | K26: 0 | M26: 6731000014 | N26: 673101001 | O26: 28266261
C27: О | D27: 1.4.3 | E27: ООО "ТСО № 3" | F27: 433 | G27: =SUM(H27:K27) -> 3796.275 | H27: 0 | I27: 0 | J27: 3796.275 | K27: 0 | M27: 6732038719 | N27: 673201001 | O27: 28041460
E28: Добавить организацию
D29: 2 | E29: Поступление в сеть из других уровней напряжения (трансформация) | F29: 630 | G29: 47614.247 | H29: =H31+H32+H33 -> 0 | I29: =I30+I32+I33 -> 0 | J29: =J30+J31+J33 -> 9940.703 | K29: =K30+K31+K32 -> 37673.544 | P29: 50
D30: 2.1 | E30: ВН | F30: 640 | G30: 7575.511 | J30: =H25 -> 7575.511 | P30: 60
D31: 2.2 | E31: СН1 | F31: 650 | G31: 2365.192 | J31: =I25 -> 2365.192 | P31: 70
D32: 2.3 | E32: СН2 | F32: 660 | G32: 37673.544 | K32: =J30+J31+J15-J35-J50 -> 37673.544 | P32: 80
D33: 2.4 | E33: НН | F33: 670 | G33: 0 | P33: 90
D34: 3 | E34: Генерация на установках организации (совмещение деятельности) | F34: 680 | G34: 0
D35: 4 | E35: Отпуск из сети: | F35: 690 | G35: 76167.82 | H35: =H36+H38+H41+H45 -> 0 | I35: =I36+I38+I41+I45 -> 0 | J35: =J36+J38+J41+J45 -> 23975.133 | K35: =K36+K38+K41+K45 -> 52192.687 | P35: 100
D36: 4.1 | E36: прямым прочим потребителям по договорам оказания услуг по передаче электрической энергии, в том числе: | F36: 700 | G36: 0
D37: 4.1.1 | E37: потребителям, опосредованно подключенным к шинам генераторов | F37: 710 | G37: 0
D38: 4.2 | E38: потребителям ГП, ЭСО, ЭСК, в том числе: | F38: 720 | G38: 29753.006 | J38: 18509.049 | K38: 11243.957
D39: 4.2.1 | E39: прочим потребителям, в том числе: | F39: 730 | G39: 0
D40: 4.2.1.1 | E40: потребителям, опосредованно подключенным к шинам генераторов | F40: 740 | G40: 0
D41: 4.3 | E41: смежным сетевым организациям: | F41: 750 | G41: 5466.084 | H41: =SUM(H42:H44) -> 0 | I41: =SUM(I42:I44) -> 0 | J41: =SUM(J42:J44) -> 5466.084 | K41: =SUM(K42:K44) -> 0
D42: 4.3.0 | F42: 750
C43: О | D43: 4.3.1 | E43: ПАО "МРСК центра" (на территории Смоленской области) | F43: 751 | G43: =SUM(H43:K43) -> 5466.084 | J43: 5466.084 | M43: 6901067107 | N43: 673102001 | O43: 26322017
E44: Добавить организацию
D45: 4.4 | E45: населению и приравненным к нему категориям | F45: 950 | G45: 40948.73 | K45: 40948.73 | P45: 120
D46: 5 | E46: Отпуск в сеть других уровней напряжения | F46: 960 | G46: 47614.247 | H46: =G30 -> 7575.511 | I46: =G31 -> 2365.192 | J46: =G32 -> 37673.544 | K46: =G33 -> 0 | P46: 150
D47: 6 | E47: Хозяйственные нужды организации | F47: 970 | G47: 0 | P47: 160
D48: 7 | E48: Собственное потребление (совмещение деятельности) | F48: 980 | G48: 0 | P48: 180
D49: 8 | E49: Общий объем потерь (фактические объемы), в том числе: | F49: 990 | G49: 2310.489 | H49: =H50 -> 0 | I49: =I50 -> 0 | J49: =J50 -> 1037.991 | K49: =K50 -> 1272.498 | P49: 190
D50: 8.1 | E50: относимые на собственное потребление (фактическое значение) | F50: 1000 | G50: 2310.489 | H50: 0 | I50: 0 | J50: 1037.991 | K50: 1272.498 | P50: 200
D51: 9 | E51: Нормативные потери (объемы потерь учтенные в сводном прогнозном балансе) | F51: 1010 | G51: 11611.201 | J51: 4644.481 | K51: 6966.72
D52: 10 | E52: Объем превышения фактических объемов потерь электрической энергии над объемами потерь, учтенными в сводном прогнозном балансе за соответствующий расчетный период | F52: 1020 | G52: -9300.712 | H52: =H49-H51 -> 0 | I52: =I49-I51 -> 0 | J52: =J49-J51 -> -3606.49 | K52: =K49-K51 -> -5694.222
D53: 11 | E53: Небаланс | F53: 1030 | G53: 0 | H53: =(H15+H29+H34)-(H35+H46+H47+H48+H49) -> 0 | I53: =(I15+I29+I34)-(I35+I46+I47+I48+I49) -> 0 | J53: =(J15+J29+J34)-(J35+J46+J47+J48+J49) -> 0 | K53: =(K15+K29+K34)-(K35+K46+K47+K48+K49) -> 0 | P53: 210
D54: II. Мощность (МВт)
D55: 12 | E55: Поступление в сеть из других организаций: | F55: 1040 | G55: 13.3385 | H55: =H56+H57+H60+H63 -> 1.2917 | I55: =I56+I57+I60+I63 -> 0.3997 | J55: =J56+J57+J60+J63 -> 8.9564 | K55: =K56+K57+K60+K63 -> 2.6907 | P55: 300
D56: 12.1 | E56: из сетей ПАО "ФСК ЕЭС" | F56: 1050 | G56: 0.2822 | J56: 0.2822 | P56: 310
D57: 12.2 | E57: от генерирующих компаний и блок-станций: | F57: 1060 | G57: 0 | H57: =SUM(H58:H59) -> 0 | I57: =SUM(I58:I59) -> 0 | J57: =SUM(J58:J59) -> 0 | K57: =SUM(K58:K59) -> 0 | P57: 320
D58: 12.2.0 | F58: 1060
E59: Добавить организацию
D60: 12.3 | E60: от несетевых организаций: | F60: 1260 | G60: 0 | H60: =SUM(H61:H62) -> 0 | I60: =SUM(I61:I62) -> 0 | J60: =SUM(J61:J62) -> 0 | K60: =SUM(K61:K62) -> 0
D61: 12.3.0 | F61: 1260
E62: Добавить организацию
D63: 12.4 | E63: от смежных сетевых организаций: | F63: 1460 | G63: 13.0563 | H63: =SUM(H64:H68) -> 1.2917 | I63: =SUM(I64:I68) -> 0.3997 | J63: =SUM(J64:J68) -> 8.6742 | K63: =SUM(K64:K68) -> 2.6907 | P63: 330
D64: 12.4.0 | F64: 1460
C65: О | D65: 12.4.1 | E65: ПАО "МРСК центра" (на территории Смоленской области) | F65: 1461 | G65: =SUM(H65:K65) -> 12.3863 | H65: 1.2917 | I65: 0.3997 | J65: 8.0042 | K65: 2.6907 | M65: 6901067107 | N65: 673102001 | O65: 26322017
C66: О | D66: 12.4.2 | E66: ОГУЭПП "Смоленскоблкоммунэнерго" | F66: 1462 | G66: =SUM(H66:K66) -> 0.0247 | J66: 0.0247 | M66: 6731000014 | N66: 673101001 | O66: 28266261
C67: О | D67: 12.4.3 | E67: ООО "ТСО № 3" | F67: 1463 | G67: =SUM(H67:K67) -> 0.6453 | J67: 0.6453 | M67: 6732038719 | N67: 673201001 | O67: 28041460
E68: Добавить организацию
D69: 13 | E69: Поступление в сеть из других уровней напряжения (трансформация) | F69: 1660 | G69: 8.0971 | H69: =H71+H72+H73 -> 0 | I69: =I70+I72+I73 -> 0 | J69: =J70+J71+J73 -> 1.6914 | K69: =K70+K71+K72 -> 6.4057 | P69: 340
D70: 13.1 | E70: ВН | F70: 1670 | G70: 1.2917 | J70: =H65 -> 1.2917 | P70: 350
D71: 13.2 | E71: СН1 | F71: 1680 | G71: 0.3997 | J71: =I65 -> 0.3997 | P71: 360
D72: 13.3 | E72: СН2 | F72: 1690 | G72: 6.4057 | K72: 6.4057 | P72: 370
D73: 13.4 | E73: НН | F73: 1700 | G73: 0 | P73: 380
D74: 14 | E74: Генерация на установках организации (совмещение деятельности) | F74: 1710 | G74: 0
D75: 15 | E75: Отпуск из сети: | F75: 1720 | G75: 12.9494 | H75: =H76+H78+H81+H85 -> 0 | I75: =I76+I78+I81+I85 -> 0 | J75: =J76+J78+J81+J85 -> 4.067 | K75: =K76+K78+K81+K85 -> 8.8824 | P75: 390
D76: 15.1 | E76: прямым прочим потребителям по договорам оказания услуг по передаче электрической энергии, в том числе: | F76: 1730 | G76: 0
D77: 15.1.1 | E77: потребителям, опосредованно подключенным к шинам генераторов | F77: 1740 | G77: 0
D78: 15.2 | E78: потребителям ГП, ЭСО, ЭСК, в том числе: | F78: 1750 | G78: 5.0436 | J78: 3.135 | K78: 1.9086
D79: 15.2.1 | E79: прочим потребителям, в том числе: | F79: 1760 | G79: 0
D80: 15.2.1.1 | E80: потребителям, опосредованно подключенным к шинам генераторов | F80: 1770 | G80: 0
D81: 15.3 | E81: смежным сетевым организациям: | F81: 1780 | G81: 0.932 | H81: =SUM(H82:H84) -> 0 | I81: =SUM(I82:I84) -> 0 | J81: =SUM(J82:J84) -> 0.932 | K81: =SUM(K82:K84) -> 0
D82: 15.3.0 | F82: 1780
C83: О | D83: 15.3.1 | E83: ПАО "МРСК центра" (на территории Смоленской области) | F83: 1781 | G83: =SUM(H83:K83) -> 0.932 | J83: 0.932 | M83: 6901067107 | N83: 673102001 | O83: 26322017
E84: Добавить организацию
D85: 15.4 | E85: населению и приравненным к нему категориям | F85: 1980 | G85: 6.9738 | K85: 6.9738 | P85: 410
D86: 16 | E86: Отпуск в сеть других уровней напряжения | F86: 1990 | G86: 8.0971 | H86: =G70 -> 1.2917 | I86: =G71 -> 0.3997 | J86: =G72 -> 6.4057 | K86: =G73 -> 0 | P86: 440
D87: 17 | E87: Хозяйственные нужды организации | F87: 2000 | G87: 0 | P87: 450
D88: 18 | E88: Собственное потребление (совмещение деятельности) | F88: 2010 | G88: 0 | P88: 470
D89: 19 | E89: Общий объем потерь (фактические объемы), в том числе: | F89: 2020 | G89: 0.3891 | H89: =H90 -> 0 | I89: =I90 -> 0 | J89: =J90 -> 0.1751 | K89: =K90 -> 0.214 | P89: 480
D90: 19.1 | E90: относимые на собственное потребление | F90: 2030 | G90: 0.3891 | H90: 0 | I90: 0 | J90: 0.1751 | K90: 0.214 | P90: 490
D91: 20 | E91: Нормативные потери (объемы потерь учтенные в сводном прогнозном балансе) | F91: 2040 | G91: 0.9773 | K91: 0.9773
D92: 21 | E92: Объем превышения фактических объемов потерь электрической энергии над объемами потерь, учтенными в сводном прогнозном балансе за соответствующий расчетный период | F92: 2050 | G92: -0.5882 | H92: =H89-H91 -> 0 | I92: =I89-I91 -> 0 | J92: =J89-J91 -> 0.1751 | K92: =K89-K91 -> -0.7633
D93: 22 | E93: Небаланс | F93: 2060 | G93: 0 | H93: =(H55+H69+H74)-(H75+H86+H87+H88+H89) -> 0 | I93: =(I55+I69+I74)-(I75+I86+I87+I88+I89) -> 0 | J93: =(J55+J69+J74)-(J75+J86+J87+J88+J89) -> 0 | K93: =(K55+K69+K74)-(K75+K86+K87+K88+K89) -> 0 | P93: 500
D94: III. Мощность (МВт)
D95: 23 | E95: Заявленная мощность | F95: 2070 | G95: 14.75 | J95: 14.75 | P95: 600
D96: 24 | E96: Максимальная мощность | F96: 2080 | G96: 0 | P96: 610
D97: 25 | E97: Резервируемая мощность | F97: 2090 | G97: 0 | P97: 620
D98: IV. Фактический полезный отпуск конечным потребителям (тыс. кВт ч; МВт)
D99: 26 | E99: Полезный отпуск конечным потребителям (тыс. кВт ч): | F99: 2100 | G99: 0 | H99: =SUM(H100:H101) -> 0 | I99: =SUM(I100:I101) -> 0 | J99: =SUM(J100:J101) -> 0 | K99: =SUM(K100:K101) -> 0 | P99: 700
D100: 26.1 | E100: по одноставочному тарифу | F100: 2110 | G100: 0 | P100: 710
D101: 26.2 | E101: по двухставочному тарифу: | F101: 2120 | G101: 0 | H101: =H104 -> 0 | I101: =I104 -> 0 | J101: =J104 -> 0 | K101: =K104 -> 0 | P101: 720
D102: 26.2.1 | E102: мощность (МВт), в том числе: | F102: 2130 | G102: 0 | P102: 730
D103: 26.2.1.1 | E103: опосредованно подключенным к шинам генераторов (МВт) | F103: 2140 | G103: 0
D104: 26.2.2 | E104: компенсация потерь (тыс. кВт ч) | F104: 2150 | G104: 0 | P104: 740
D105: 27 | E105: Полезный отпуск потребителям ГП, ЭСО (тыс. кВт ч): | F105: 2160 | G105: 0 | H105: =H106+H122 -> 0 | I105: =I106+I122 -> 0 | J105: =J106+J122 -> 0 | K105: =K106+K122 -> 0 | P105: 750
D106: 27.1 | E106: по одноставочному тарифу: | F106: 2170 | G106: 0 | H106: =H107+H108 -> 0 | I106: =I107+I108 -> 0 | J106: =J107+J108 -> 0 | K106: =K107+K108 -> 0 | P106: 760
D107: 27.1.1 | E107: прочим потребителям | F107: 2180 | G107: 0
D108: 27.1.2 | E108: населению и приравненным к нему категориям потребителей: | F108: 2190 | G108: 0 | H108: =H109+H112+H115+H118+H119+H120+H121 -> 0 | I108: =I109+I112+I115+I118+I119+I120+I121 -> 0 | J108: =J109+J112+J115+J118+J119+J120+J121 -> 0 | K108: =K109+K112+K115+K118+K119+K120+K121 -> 0
D109: 27.1.2.1 | E109: Населению, проживающему в городских населенных пунктах в домах, не оборудованных в установленном порядке стационарными электроплитами и (или) электроотопительными установками и приравненным к нему категориям потребителей: | F109: 2200 | G109: 0 | H109: =H110+H111 -> 0 | I109: =I110+I111 -> 0 | J109: =J110+J111 -> 0 | K109: =K110+K111 -> 0
D110: 27.1.2.1.1 | E110: в пределах социальной нормы потребления | F110: 2210 | G110: 0
D111: 27.1.2.1.2 | E111: сверх социальной нормы потребления | F111: 2220 | G111: 0
D112: 27.1.2.2 | E112: Населению, проживающему в городских населенных пунктах в домах, оборудованных в установленном порядке стационарными электроплитами и электроотопительными установками и приравненным к нему категориям потребителей: | F112: 2230 | G112: 0 | H112: =H113+H114 -> 0 | I112: =I113+I114 -> 0 | J112: =J113+J114 -> 0 | K112: =K113+K114 -> 0
D113: 27.1.2.2.1 | E113: в пределах социальной нормы потребления | F113: 2240 | G113: 0
D114: 27.1.2.2.2 | E114: сверх социальной нормы потребления | F114: 2250 | G114: 0
D115: 27.1.2.3 | E115: Населению, проживающему в сельских населенных пунктах и приравненным к нему потребителям: | F115: 2260 | G115: 0 | H115: =H116+H117 -> 0 | I115: =I116+I117 -> 0 | J115: =J116+J117 -> 0 | K115: =K116+K117 -> 0
D116: 27.1.2.3.1 | E116: в пределах социальной нормы потребления | F116: 2270 | G116: 0
D117: 27.1.2.3.2 | E117: сверх социальной нормы потребления | F117: 2280 | G117: 0
D118: 27.1.2.4 | E118: Садоводческим, огородническим или дачным некоммерческим объединениям граждан | F118: 2290 | G118: 0
D119: 27.1.2.5 | E119: Религиозным организациям | F119: 2300 | G119: 0
D120: 27.1.2.6 | E120: Юридическим лицам приобретающим электроэнергию в целях потребления на коммунально-бытовые нужды в населенных пунктах, жилых зонах при воинских частях и в целях потребления осужденными в помещениях для их содержания | F120: 2310 | G120: 0
D121: 27.1.2.7 | E121: Некоммерческим объединениям граждан (гаражно-строительные, гаражные кооперативы) и хозяйственные постройки физических лиц | F121: 2320 | G121: 0
D122: 27.2 | E122: по двухставочному тарифу (прочие потребители): | F122: 2330 | G122: 0 | H122: =H125 -> 0 | I122: =I125 -> 0 | J122: =J125 -> 0 | K122: =K125 -> 0 | P122: 770
D123: 27.2.1 | E123: мощность (МВт), в том числе: | F123: 2340 | G123: 0 | P123: 780
D124: 27.2.1.1 | E124: опосредованно подключенным к шинам генераторов (МВт) | F124: 2350 | G124: 0
D125: 27.2.2 | E125: компенсация потерь (тыс. кВт ч) | F125: 2360 | G125: 0 | P125: 790
D126: 28 | E126: Оплачиваемый сетевыми организациями объем оказанных услуг по индивидуальному тарифу: | F126: 2370 | G126: 76167.82 | H126: =SUM(H127:H128) -> 0 | I126: =SUM(I127:I128) -> 0 | J126: =SUM(J127:J128) -> 23975.133 | K126: =SUM(K127:K128) -> 52192.687
D127: 28.1 | E127: по одноставочному тарифу | F127: 2380 | G127: 0
D128: 28.2 | E128: по двухставочному тарифу: | F128: 2390 | G128: 76167.82 | H128: =H130 -> 0 | I128: =I130 -> 0 | J128: =J130 -> 23975.133 | K128: =K130 -> 52192.687
D129: 28.2.1 | E129: мощность (МВт) | F129: 2400 | G129: 14.75 | J129: 14.75
D130: 28.2.2 | E130: компенсация потерь (тыс. кВт ч) | F130: 2410 | G130: 76167.82 | J130: =J35 -> 23975.133 | K130: =K35 -> 52192.687
D131: V. Стоимость услуг (тыс. руб.)
D132: 29 | E132: Стоимость услуг, оплачиваемая потребителями (конечными потребителями по прямым договорам и ТСО): | F132: 2420 | G132: 0 | H132: =SUM( H133:H134) -> 0 | I132: =SUM( I133:I134) -> 0 | J132: =SUM( J133:J134) -> 0 | K132: =SUM( K133:K134) -> 0 | P132: 800
D133: 29.1 | E133: по одноставочному тарифу | F133: 2430 | G133: 0 | P133: 810
D134: 29.2 | E134: по двухставочному тарифу: | F134: 2440 | G134: 0 | H134: =H135+H137 -> 0 | I134: =I135+I137 -> 0 | J134: =J135+J137 -> 0 | K134: =K135+K137 -> 0 | P134: 820
D135: 29.2.1 | E135: мощность, в том числе: | F135: 2450 | G135: 0 | P135: 830
D136: 29.2.1.1 | E136: опосредованно потребителям с шин генераторов | F136: 2460 | G136: 0
D137: 29.2.2 | E137: компенсация потерь | F137: 2470 | G137: 0 | P137: 840
D138: 30 | E138: Стоимость услуг, оплачиваемая ГП, ЭСО: | F138: 2480 | G138: 0 | H138: =SUM( H139+H144) -> 0 | I138: =SUM( I139+I144) -> 0 | J138: =SUM( J139+J144) -> 0 | K138: =SUM( K139+K144) -> 0 | P138: 850
D139: 30.1 | E139: по одноставочному тарифу | F139: 2490 | G139: =SUM(H139:K139) -> 0 | H139: =SUM( H140:H141) -> 0 | I139: =SUM( I140:I141) -> 0 | J139: =SUM( J140:J141) -> 0 | K139: =SUM( K140:K141) -> 0 | P139: 860
D140: 30.1.1 | E140: прочим потребителям | F140: 2500 | G140: 0
D141: 30.1.2 | E141: населению и приравненным к нему категориям потребителей: | F141: 2510 | G141: 0 | H141: =H142+H143 -> 0 | I141: =I142+I143 -> 0 | J141: =J142+J143 -> 0 | K141: =K142+K143 -> 0
D142: 30.1.2.1 | E142: в пределах социальной нормы потребления | F142: 2520 | G142: 0
D143: 30.1.2.2 | E143: сверх социальной нормы потребления | F143: 2530 | G143: 0
D144: 30.2 | E144: по двухставочному тарифу (прочие потребители): | F144: 2540 | G144: 0 | H144: =H145+H147 -> 0 | I144: =I145+I147 -> 0 | J144: =J145+J147 -> 0 | K144: =K145+K147 -> 0 | P144: 870
D145: 30.2.1 | E145: мощность, в том числе: | F145: 2550 | G145: 0 | P145: 880
D146: 30.2.1.1 | E146: опосредованно потребителям с шин генераторов | F146: 2560 | G146: 0
D147: 30.2.2 | E147: компенсация потерь | F147: 2570 | G147: 0 | P147: 890
D148: 31 | E148: Стоимость услуг, оплачиваемых сетевыми организациями по индивидуальному тарифу: | F148: 2580 | G148: 65775.72273 | H148: =SUM( H149:H150) -> 0 | I148: =SUM( I149:I150) -> 0 | J148: =SUM( J149:J150) -> 65775.72273 | K148: =SUM( K149:K150) -> 0 | P148: 900
D149: 31.1 | E149: по одноставочному тарифу | F149: 2590 | G149: 0
D150: 31.2 | E150: по двухставочному тарифу: | F150: 2600 | G150: 65775.72273 | H150: =H151+H152 -> 0 | I150: =I151+I152 -> 0 | J150: =J151+J152 -> 65775.72273 | K150: =K151+K152 -> 0
D151: 31.2.1 | E151: мощность | F151: 2610 | G151: 29220.24558 | J151: 29220.24558 | P151: 920
D152: 31.2.2 | E152: компенсация потерь | F152: 2620 | G152: 36555.47715 | J152: 36555.47715 | P152: 910
E154: Должностное лицо, ответственное за | F154: =IF(Титульный!G45="","",Титульный!G45) -> заместитель генерального директора | I154: =IF(Титульный!G44="","",Титульный!G44) -> Маркадеева Анна Владимировна
E155: предоставление статистической информации | F155: (должность) | I155: (Ф.И.О.) | M155: (подпись)
E156: (лицо, уполномоченное предоставлять
E157: статистическую информацию от имени | F157: =IF(Титульный!G46="","",Титульный!G46) -> 89156362155 | J157: «____» _________20__ год
E158: юридического лица) | F158: (номер контактного телефона) | J158: (дата составления документа)

Sheet Комментарии
D8: Комментарии
D9: =IF(org="","Не определено",org) -> ООО "Горэлектро"
D11: № п/п | E11: Комментарий
D12: 1 | E12: 2
D13: 0
E14: Добавить комментарий

Sheet Проверка
B2: Результат проверки
B3: =IF(org="","Не определено",org) -> ООО "Горэлектро"
B5: Ссылка | C5: Причина | D5: Статус

Sheet Statistic (hidden)
A1: 66
A2: 06.09.2018 19:26:20 | B2: 14.0 | C2: Windows (32-bit) NT 6.01
A3: 11.09.2018 18:16:52 | B3: 14.0 | C3: Windows (32-bit) NT 6.01
A4: 11.09.2018 20:57:11 | B4: 14.0 | C4: Windows (32-bit) NT 6.01
A5: 12.09.2018 09:35:26 | B5: 14.0 | C5: Windows (32-bit) NT 6.01
A6: 12.09.2018 10:24:58 | B6: 14.0 | C6: Windows (32-bit) NT 6.01
A7: 12.09.2018 16:27:05 | B7: 14.0 | C7: Windows (32-bit) NT 6.01
A8: 13.09.2018 15:09:23 | B8: 14.0 | C8: Windows (32-bit) NT 6.01
A9: 13.09.2018 16:04:22 | B9: 14.0 | C9: Windows (32-bit) NT 6.01
A10: 13.09.2018 16:05:18 | B10: 14.0 | C10: Windows (32-bit) NT 6.01
A11: 13.09.2018 19:14:38 | B11: 14.0 | C11: Windows (32-bit) NT 6.01
A12: 14.09.2018 11:13:01 | B12: 14.0 | C12: Windows (32-bit) NT 6.01
A13: 14.09.2018 11:18:37 | B13: 14.0 | C13: Windows (32-bit) NT 6.01
A14: 17.09.2018 21:09:54 | B14: 14.0 | C14: Windows (32-bit) NT 6.01
A15: 18.09.2018 10:38:31 | B15: 14.0 | C15: Windows (32-bit) NT 6.01
A16: 18.09.2018 12:43:39 | B16: 14.0 | C16: Windows (32-bit) NT 6.01
A17: 18.09.2018 12:47:52 | B17: 14.0 | C17: Windows (32-bit) NT 6.01
A18: 18.09.2018 12:54:00 | B18: 14.0 | C18: Windows (32-bit) NT 6.01
A19: 18.09.2018 12:57:51 | B19: 14.0 | C19: Windows (32-bit) NT 6.01
A20: 18.09.2018 13:09:47 | B20: 14.0 | C20: Windows (32-bit) NT 6.01
A21: 18.09.2018 13:11:28 | B21: 14.0 | C21: Windows (32-bit) NT 6.01
A22: 18.09.2018 13:28:28 | B22: 14.0 | C22: Windows (32-bit) NT 6.01
A23: 18.09.2018 15:52:57 | B23: 14.0 | C23: Windows (32-bit) NT 6.01
A24: 18.09.2018 17:01:38 | B24: 14.0 | C24: Windows (32-bit) NT 6.01
A25: 18.09.2018 18:14:48 | B25: 14.0 | C25: Windows (32-bit) NT 6.01
A26: 19.09.2018 16:09:09 | B26: 14.0 | C26: Windows (32-bit) NT 6.01
A27: 19.09.2018 18:23:43 | B27: 14.0 | C27: Windows (32-bit) NT 6.01
A28: 20.09.2018 10:53:47 | B28: 14.0 | C28: Windows (32-bit) NT 6.01
A29: 20.09.2018 11:00:09 | B29: 14.0 | C29: Windows (32-bit) NT 6.01
A30: 20.09.2018 11:51:55 | B30: 14.0 | C30: Windows (32-bit) NT 6.01
A31: 20.09.2018 12:24:20 | B31: 14.0 | C31: Windows (32-bit) NT 6.01
A32: 20.09.2018 15:06:45 | B32: 14.0 | C32: Windows (32-bit) NT 6.01
A33: 20.09.2018 15:26:56 | B33: 14.0 | C33: Windows (32-bit) NT 6.01
A34: 21.09.2018 13:25:15 | B34: 14.0 | C34: Windows (32-bit) NT 6.01
A35: 21.09.2018 15:22:58 | B35: 14.0 | C35: Windows (32-bit) NT 6.01
A36: 21.09.2018 15:42:42 | B36: 14.0 | C36: Windows (32-bit) NT 6.01
A37: 21.09.2018 16:03:56 | B37: 14.0 | C37: Windows (32-bit) NT 6.01
A38: 21.09.2018 20:18:40 | B38: 14.0 | C38: Windows (32-bit) NT 6.01
A39: 22.09.2018 17:11:07 | B39: 14.0 | C39: Windows (32-bit) NT 6.01
A40: 23.09.2018 20:21:15 | B40: 14.0 | C40: Windows (32-bit) NT 6.01
A41: 24.09.2018 14:40:14 | B41: 14.0 | C41: Windows (32-bit) NT 6.01
A42: 25.09.2018 14:58:01 | B42: 14.0 | C42: Windows (32-bit) NT 6.01
A43: 25.09.2018 19:01:11 | B43: 14.0 | C43: Windows (32-bit) NT 6.01
A44: 03.10.2018 12:23:00 | B44: 14.0 | C44: Windows (32-bit) NT 6.01
A45: 16.07.2019 11:12:16 | B45: 12.0 | C45: Windows (32-bit) NT 6.01
A46: 16.07.2019 11:42:48 | B46: 12.0 | C46: Windows (32-bit) NT 6.01
A47: 15.08.2019 10:22:13 | B47: 12.0 | C47: Windows (32-bit) NT 6.01
A48: 15.08.2019 10:23:39 | B48: 12.0 | C48: Windows (32-bit) NT 6.01
A49: 12.09.2019 11:24:04 | B49: 12.0 | C49: Windows (32-bit) NT 6.01
A50: 15.10.2019 15:50:00 | B50: 12.0 | C50: Windows (32-bit) NT 6.01
A51: 15.11.2019 11:36:41 | B51: 12.0 | C51: Windows (32-bit) NT 6.01
A52: 17.12.2019 11:17:58 | B52: 12.0 | C52: Windows (32-bit) NT 6.01
A53: 17.12.2019 11:19:00 | B53: 12.0 | C53: Windows (32-bit) NT 6.01
A54: 17.12.2019 11:19:51 | B54: 12.0 | C54: Windows (32-bit) NT 6.01
A55: 15.01.2020 14:34:31 | B55: 12.0 | C55: Windows (32-bit) NT 6.01
A56: 14.02.2020 10:14:48 | B56: 12.0 | C56: Windows (32-bit) NT 6.01
A57: 17.03.2020 11:10:24 | B57: 12.0 | C57: Windows (32-bit) NT 6.01
A58: 20.04.2020 10:44:37 | B58: 12.0 | C58: Windows (32-bit) NT 6.01
A59: 20.05.2020 08:30:41 | B59: 12.0 | C59: Windows (32-bit) NT 6.01
A60: 15.07.2020 09:37:10 | B60: 12.0 | C60: Windows (32-bit) NT 6.01
A61: 15.07.2020 09:45:35 | B61: 12.0 | C61: Windows (32-bit) NT 6.01
A62: 14.08.2020 09:59:51 | B62: 12.0 | C62: Windows (32-bit) NT 6.01
A63: 21.09.2020 10:17:49 | B63: 12.0 | C63: Windows (32-bit) NT 6.01
A64: 15.10.2020 09:25:22 | B64: 12.0 | C64: Windows (32-bit) NT 6.01
A65: 16.11.2020 09:40:06 | B65: 12.0 | C65: Windows (32-bit) NT 6.01
A66: 25.03.2021 13:01:13 | B66: 15.0 | C66: Windows (32-bit) NT 6.01

Sheet TEHSHEET (hidden)
B1: Алтайский край | D1: MONTH | E1: YEAR | F1: DaNet | G1: type_report
A2: 0 | B2: Амурская область | D2: январь | E2: 2018 | F2: Да | G2: В целом по организации
B3: Архангельская область | D3: февраль | E3: 2019 | F3: Нет | G3: По обособленному подразделению
B4: Астраханская область | D4: март | E4: 2020
B5: Белгородская область | D5: апрель | E5: 2021
B6: Брянская область | D6: май | E6: 2022
B7: Владимирская область | D7: июнь
B8: Волгоградская область | D8: июль
B9: Вологодская область | D9: август
B10: Воронежская область | D10: сентябрь
B11: г.Байконур | D11: октябрь
B12: г. Москва | D12: ноябрь
B13: г.Санкт-Петербург | D13: декабрь
B14: г.Севастополь | D14: год
B15: Еврейская автономная область
B16: Забайкальский край
B17: Ивановская область
B18: Иркутская область
B19: Кабардино-Балкарская республика
B20: Калининградская область
B21: Калужская область
B22: Камчатский край | D22: URL_FORMAT
B23: Карачаево-Черкесская республика | D23: https://portal.eias.ru/Portal/DownloadPage.aspx?type=12&guid=????????-????-????-????-????????????
B24: Кемеровская область | D24: MSG_URL
B25: Кировская область | D25: ="Необходимо ввести ссылку на обосновывающие материалы в формате: """ & URL_FORMAT & """ (смотри раздел ""Методология заполнения"" листа ""Инструкция"")" -> Необходимо ввести ссылку на обосновывающие материалы в формате: "https://portal.eias.ru/Portal/DownloadPage.aspx?type=12&guid=????????-????-????-????-????????????" (смотри раздел "Методология заполнения" листа "Инструкция")
B26: Костромская область
B27: Краснодарский край
B28: Красноярский край
B29: Курганская область
B30: Курская область
B31: Ленинградская область
B32: Липецкая область
B33: Магаданская область
B34: Московская область
B35: Мурманская область
B36: Ненецкий автономный округ
B37: Нижегородская область
B38: Новгородская область
B39: Новосибирская область
B40: Омская область
B41: Оренбургская область
B42: Орловская область
B43: Пензенская область
B44: Пермский край
B45: Приморский край
B46: Псковская область
B47: Республика Адыгея
B48: Республика Алтай
B49: Республика Башкортостан
B50: Республика Бурятия
B51: Республика Дагестан
B52: Республика Ингушетия
B53: Республика Калмыкия
B54: Республика Карелия
B55: Республика Коми
B56: Республика Крым
B57: Республика Марий Эл
B58: Республика Мордовия
B59: Республика Саха (Якутия)
B60: Республика Северная Осетия-Алания
B61: Республика Татарстан
B62: Республика Тыва
B63: Республика Хакасия
B64: Ростовская область
B65: Рязанская область
B66: Самарская область
B67: Саратовская область
B68: Сахалинская область
B69: Свердловская область
B70: Смоленская область
B71: Ставропольский край
B72: Тамбовская область
B73: Тверская область
B74: Томская область
B75: Тульская область
B76: Тюменская область
B77: Удмуртская республика
B78: Ульяновская область
B79: Хабаровский край
B80: Ханты-Мансийский автономный округ
B81: Челябинская область
B82: Чеченская республика
B83: Чувашская республика
B84: Чукотский автономный округ
B85: Ямало-Ненецкий автономный округ
B86: Ярославская область

Sheet et_union (hidden)
A2: et_com
C3: О | D3: 1
A4: et_org
G5: =SUM(H5:K5) -> 0

Sheet AllSheetsInThisWorkbook (hidden)
A1: Расчетные листы | B1: Скрытые листы
A2: Инструкция | B2: Statistic
A3: Лог обновления | B3: TEHSHEET
A4: Титульный | B4: et_union
A5: Отпуск ЭЭ сет организациями | B5: AllSheetsInThisWorkbook
A6: Комментарии | B6: mod_01
A7: Проверка | B7: mod_11
B8: modComm
B9: modListProv
B10: modButton
B11: modInstruction
B12: modHTTP
B13: REESTR_ORG
B14: REESTR_FIL
B15: REESTR_MO
B16: REESTR_EGRUL
B17: modfrmRegion
B18: modfrmReestr
B19: modfrmFindEGRUL
B20: modfrmCheckUpdates
B21: modReestr
B22: modUpdTemplMain
B23: modHyperlink
B24: modClassifierValidate

Sheet mod_01 (hidden)

Sheet mod_11 (hidden)

Sheet modComm (hidden)

Sheet modListProv (hidden)

Sheet modButton (hidden)

Sheet modInstruction (hidden)

Sheet modHTTP (hidden)

Sheet REESTR_ORG (hidden)
B1: REGION_ID | C1: REGION_NAME | D1: MR_NAME | E1: OKTMR_NAME | F1: MO_NAME | G1: OKTMO_NAME | H1: RST_ORG_ID | I1: ORG_NAME | J1: INN_NAME | K1: KPP_NAME | L1: ORG_START_DATE | M1: ORG_END_DATE | N1: VDET_START_DATE | O1: VDET_END_DATE | P1: VDET_NAME | Q1: VDET_NAME_LIST | R1: VDET_FULL_NAME_LIST | S1: HAS_TARIFF
A2: 1 | B2: 2599 | C2: Смоленская область | H2: 26524393 | I2: АО "АтомЭнергоСбыт" | J2: 7704228075 | K2: 772501001 | Q2: ГП | R2: /Электроэнергетика/Сбыт ЭЭ/ГП | S2: Y
A3: 2 | B3: 2599 | C3: Смоленская область | H3: 28943588 | I3: АО "Атомэнергопромсбыт" | J3: 7725828549 | K3: 770501001 | Q3: Нерегулируемый сбыт | R3: /Электроэнергетика/Сбыт ЭЭ/Нерегулируемый сбыт | S3: Y
A4: 3 | B4: 2599 | C4: Смоленская область | H4: 26318885 | I4: АО "Газпром энергосбыт" | J4: 7705750968 | K4: 772901001 | Q4: Нерегулируемый сбыт | R4: /Электроэнергетика/Сбыт ЭЭ/Нерегулируемый сбыт | S4: Y
A5: 4 | B5: 2599 | C5: Смоленская область | H5: 26318876 | I5: АО "Мосэнергосбыт" | J5: 7736520080 | K5: 997650001 | Q5: Нерегулируемый сбыт | R5: /Электроэнергетика/Сбыт ЭЭ/Нерегулируемый сбыт | S5: Y
A6: 5 | B6: 2599 | C6: Смоленская область | H6: 27215840 | I6: АО "Оборонэнерго" филиал "Волго-Вятский" | J6: 7704726225 | K6: 526343001 | L6: 01-09-2011 00:00:00 | Q6: РСО | R6: /Электроэнергетика/Передача ЭЭ/РСО | S6: Y
A7: 6 | B7: 2599 | C7: Смоленская область | H7: 26617350 | I7: АО "Оборонэнергосбыт" | J7: 7704731218 | K7: 773043001 | L7: 23-03-2010 00:00:00 | Q7: Нерегулируемый сбыт | R7: /Электроэнергетика/Сбыт ЭЭ/Нерегулируемый сбыт | S7: Y
A8: 7 | B8: 2599 | C8: Смоленская область | H8: 26617350 | I8: АО "Оборонэнергосбыт" | J8: 7704731218 | K8: 773043001 | L8: 23-03-2010 00:00:00 | Q8: ГП | R8: /Электроэнергетика/Сбыт ЭЭ/ГП | S8: Y
A9: 8 | B9: 2599 | C9: Смоленская область | H9: 26375106 | I9: АО "Смоленский авиационный завод" | J9: 6729001476 | K9: 672950001 | Q9: РСО | R9: /Электроэнергетика/Передача ЭЭ/РСО | S9: Y
A10: 9 | B10: 2599 | C10: Смоленская область | H10: 26321971 | I10: АО "ЭлС" | J10: 6724007210 | K10: 672401001 | Q10: РСО | R10: /Электроэнергетика/Передача ЭЭ/РСО | S10: Y
A11: 10 | B11: 2599 | C11: Смоленская область | H11: 26322014 | I11: ГУП города Москвы "Литейно-прокатный завод" (производственный комплекс в г. Ярцево) | J11: 7721261080 | K11: 772101001 | Q11: РСО | R11: /Электроэнергетика/Передача ЭЭ/РСО | S11: Y
A12: 11 | B12: 2599 | C12: Смоленская область | H12: 26820307 | I12: ЗАО "Дорогобужхимстрой" | J12: 6730032687 | K12: 673001001 | Q12: РСО | R12: /Электроэнергетика/Передача ЭЭ/РСО | S12: Y
A13: 12 | B13: 2599 | C13: Смоленская область | H13: 27828121 | I13: ЗАО "Монтажзаготовка" | J13: 6714000254 | K13: 671401001 | Q13: РСО | R13: /Электроэнергетика/Передача ЭЭ/РСО | S13: Y
A14: 13 | B14: 2599 | C14: Смоленская область | H14: 26814742 | I14: ЗАО "Транссервисэнерго" | J14: 7710430593 | K14: 771001001 | Q14: Нерегулируемый сбыт | R14: /Электроэнергетика/Сбыт ЭЭ/Нерегулируемый сбыт | S14: Y
A15: 14 | B15: 2599 | C15: Смоленская область | H15: 27554214 | I15: ЗАО трест "Смоленскагропромстрой" | J15: 6731020250 | K15: 673101001 | Q15: РСО | R15: /Электроэнергетика/Передача ЭЭ/РСО | S15: Y
A16: 15 | B16: 2599 | C16: Смоленская область | H16: 27698776 | I16: ИП Петроченков Д.М. | J16: 673009302235 | K16: отсутствует | Q16: РСО | R16: /Электроэнергетика/Передача ЭЭ/РСО | S16: Y
A17: 16 | B17: 2599 | C17: Смоленская область | H17: 27675714 | I17: ИП Свидлер В.М. | J17: 672900503080 | K17: отсутствует | Q17: РСО | R17: /Электроэнергетика/Передача ЭЭ/РСО | S17: Y
A18: 17 | B18: 2599 | C18: Смоленская область | H18: 27294890 | I18: ИП Сорин Владимир Яковлевич | J18: 673100004037 | K18: отсутствует | Q18: РСО | R18: /Электроэнергетика/Передача ЭЭ/РСО | S18: Y
A19: 18 | B19: 2599 | C19: Смоленская область | H19: 26524507 | I19: МУП "Кутузовское" | J19: 6706005996 | K19: 670601001 | Q19: РСО | R19: /Электроэнергетика/Передача ЭЭ/РСО | S19: Y
A20: 19 | B20: 2599 | C20: Смоленская область | H20: 26505895 | I20: Московская дирекция по энергообеспечению Трансэнерго - филиал ОАО "РЖД" | J20: 7708503727 | K20: 770845041 | Q20: РСО | R20: /Электроэнергетика/Передача ЭЭ/РСО | S20: Y
A21: 20 | B21: 2599 | C21: Смоленская область | H21: 26318852 | I21: ОАО "Смоленскэнергосбыт" | J21: 6731048633 | K21: 673101001 | Q21: ГП | R21: /Электроэнергетика/Сбыт ЭЭ/ГП | S21: Y
A22: 21 | B22: 2599 | C22: Смоленская область | H22: 26569253 | I22: ОАО «Московское городское энергосбытовое предприятие» | J22: 7743628060 | K22: 774301001 | L22: 14-10-2010 00:00:00 | Q22: Нерегулируемый сбыт | R22: /Электроэнергетика/Сбыт ЭЭ/Нерегулируемый сбыт | S22: Y
A23: 22 | B23: 2599 | C23: Смоленская область | H23: 28266261 | I23: ОГУЭПП "Смоленскоблкоммунэнерго" | J23: 6731000014 | K23: 673101001 | Q23: РСО | R23: /Электроэнергетика/Передача ЭЭ/РСО | S23: Y
A24: 23 | B24: 2599 | C24: Смоленская область | H24: 26766814 | I24: ООО "ГРИНН Энергосбыт" | J24: 4632116134 | K24: 463201001 | Q24: Нерегулируемый сбыт | R24: /Электроэнергетика/Сбыт ЭЭ/Нерегулируемый сбыт | S24: Y
A25: 24 | B25: 2599 | C25: Смоленская область | H25: 28505959 | I25: ООО "Горэлектро" | J25: 6732066794 | K25: 673201001 | Q25: РСО | R25: /Электроэнергетика/Передача ЭЭ/РСО | S25: Y
A26: 25 | B26: 2599 | C26: Смоленская область | H26: 28497180 | I26: ООО "Дорогобужская ТЭЦ" | J26: 6726018979 | K26: 672601001 | Q26: Комбинированная выработка | R26: /Электроэнергетика/Производство ЭЭ/Комбинированная выработка | S26: Y
A27: 26 | B27: 2599 | C27: Смоленская область | H27: 28497180 | I27: ООО "Дорогобужская ТЭЦ" | J27: 6726018979 | K27: 672601001 | Q27: Комбинированная выработка :: Некомбинированная выработка | R27: /Электроэнергетика/Производство ЭЭ/Комбинированная выработка :: /Электроэнергетика/Производство ЭЭ/Некомбинированная выработка | S27: Y
A28: 27 | B28: 2599 | C28: Смоленская область | H28: 27828141 | I28: ООО "Здание Амипресс" | J28: 6730054881 | K28: 673001001 | Q28: РСО | R28: /Электроэнергетика/Передача ЭЭ/РСО | S28: Y
A29: 28 | B29: 2599 | C29: Смоленская область | H29: 31340189 | I29: ООО "МСК Энерго" | J29: 7725567512 | K29: 772901001 | Q29: Нерегулируемый сбыт | R29: /Электроэнергетика/Сбыт ЭЭ/Нерегулируемый сбыт | S29: Y
A30: 29 | B30: 2599 | C30: Смоленская область | H30: 28147378 | I30: ООО "МагнитЭнерго" | J30: 7715902899 | K30: 231001001 | Q30: Нерегулируемый сбыт | R30: /Электроэнергетика/Сбыт ЭЭ/Нерегулируемый сбыт | S30: Y
A31: 30 | B31: 2599 | C31: Смоленская область | H31: 26842490 | I31: ООО "Металлэнергофинанс" | J31: 4217039402 | K31: 775050001 | L31: 17-09-2002 00:00:00 | Q31: Нерегулируемый сбыт | R31: /Электроэнергетика/Сбыт ЭЭ/Нерегулируемый сбыт | S31: Y
A32: 31 | B32: 2599 | C32: Смоленская область | H32: 31368700 | I32: ООО "Парус" | J32: 6623122216 | K32: 672701001 | Q32: РСО | R32: /Электроэнергетика/Передача ЭЭ/РСО | S32: Y
A33: 32 | B33: 2599 | C33: Смоленская область | H33: 26447338 | I33: ООО "Прогресс плюс" | J33: 6725011177 | K33: 672501001 | Q33: РСО | R33: /Электроэнергетика/Передача ЭЭ/РСО | S33: Y
A34: 33 | B34: 2599 | C34: Смоленская область | H34: 31389933 | I34: ООО "Прогресс-Плюс" | J34: 6725033491 | K34: 672501001 | L34: 01-01-2020 00:00:00 | Q34: РСО | R34: /Электроэнергетика/Передача ЭЭ/РСО | S34: Y
A35: 34 | B35: 2599 | C35: Смоленская область | H35: 28828073 | I35: ООО "Промэнергосеть" | J35: 6732063426 | K35: 673201001 | Q35: РСО | R35: /Электроэнергетика/Передача ЭЭ/РСО | S35: Y
A36: 35 | B36: 2599 | C36: Смоленская область | H36: 28113333 | I36: ООО "РН-Энерго" | J36: 7706525041 | K36: 774850001 | L36: 26-02-2004 00:00:00 | Q36: Нерегулируемый сбыт | R36: /Электроэнергетика/Сбыт ЭЭ/Нерегулируемый сбыт | S36: Y
A37: 36 | B37: 2599 | C37: Смоленская область | H37: 28494201 | I37: ООО "РУСЭНЕРГО" | J37: 4401144416 | K37: 770501001 | Q37: Нерегулируемый сбыт | R37: /Электроэнергетика/Сбыт ЭЭ/Нерегулируемый сбыт | S37: Y
A38: 37 | B38: 2599 | C38: Смоленская область | H38: 26502786 | I38: ООО "Русэнергосбыт" | J38: 7706284124 | K38: 770401001 | Q38: Нерегулируемый сбыт | R38: /Электроэнергетика/Сбыт ЭЭ/Нерегулируемый сбыт | S38: Y
A39: 38 | B39: 2599 | C39: Смоленская область | H39: 28041460 | I39: ООО "ТСО № 3" | J39: 6732038719 | K39: 673201001 | Q39: РСО | R39: /Электроэнергетика/Передача ЭЭ/РСО | S39: Y
A40: 39 | B40: 2599 | C40: Смоленская область | H40: 26497668 | I40: ООО "Транснефтьэнерго" | J40: 7703552167 | K40: 772301001 | L40: 01-07-2009 00:00:00 | Q40: Нерегулируемый сбыт | R40: /Электроэнергетика/Сбыт ЭЭ/Нерегулируемый сбыт | S40: Y
A41: 40 | B41: 2599 | C41: Смоленская область | H41: 27827982 | I41: ООО "Фирма "Смоленскгазсвязьавтоматика" | J41: 6731032697 | K41: 673101001 | Q41: РСО | R41: /Электроэнергетика/Передача ЭЭ/РСО | S41: Y
A42: 41 | B42: 2599 | C42: Смоленская область | H42: 26804329 | I42: ООО "ЭТС" | J42: 6732056933 | K42: 673201001 | Q42: РСО | R42: /Электроэнергетика/Передача ЭЭ/РСО | S42: Y
A43: 42 | B43: 2599 | C43: Смоленская область | H43: 30882200 | I43: ООО "Электро" | J43: 6714045777 | K43: 671401001 | Q43: РСО | R43: /Электроэнергетика/Передача ЭЭ/РСО | S43: Y
A44: 43 | B44: 2599 | C44: Смоленская область | H44: 28980763 | I44: ООО "Электро-сетевая компания "ЭНЕРГО" | J44: 7730122371 | K44: 773001001 | L44: 26-03-2015 00:00:00 | Q44: РСО | R44: /Электроэнергетика/Передача ЭЭ/РСО | S44: Y
A45: 44 | B45: 2599 | C45: Смоленская область | H45: 28266314 | I45: ООО "Электросеть-Сафоново" | J45: 6732053481 | K45: 673201001 | Q45: РСО | R45: /Электроэнергетика/Передача ЭЭ/РСО | S45: Y
A46: 45 | B46: 2599 | C46: Смоленская область | H46: 30377796 | I46: ООО "Электросеть-Смоленск" | J46: 6732104513 | K46: 673201001 | Q46: РСО | R46: /Электроэнергетика/Передача ЭЭ/РСО | S46: Y
A47: 46 | B47: 2599 | C47: Смоленская область | H47: 26820304 | I47: ООО "Электросетьремонт" | J47: 6730081973 | K47: 673001001 | Q47: РСО | R47: /Электроэнергетика/Передача ЭЭ/РСО | S47: Y
A48: 47 | B48: 2599 | C48: Смоленская область | H48: 31414561 | I48: ООО "Энергосбытовая компания "Горкунов" | J48: 5433970181 | K48: 543301001 | L48: 01-10-2019 00:00:00 | Q48: Нерегулируемый сбыт | R48: /Электроэнергетика/Сбыт ЭЭ/Нерегулируемый сбыт | S48: Y
A49: 48 | B49: 2599 | C49: Смоленская область | H49: 26381227 | I49: ПАО "Дорогобуж" | J49: 6704000505 | K49: 670401001 | Q49: Нерегулируемый сбыт | R49: /Электроэнергетика/Сбыт ЭЭ/Нерегулируемый сбыт | S49: Y
A50: 49 | B50: 2599 | C50: Смоленская область | H50: 26322017 | I50: ПАО "МРСК центра" (на территории Смоленской области) | J50: 6901067107 | K50: 673102001 | Q50: РСО :: ГП | R50: /Электроэнергетика/Передача ЭЭ/РСО :: /Электроэнергетика/Сбыт ЭЭ/ГП | S50: Y
A51: 50 | B51: 2599 | C51: Смоленская область | H51: 26832761 | I51: ПАО "ФСК ЕЭС" | J51: 4716016979 | K51: 772801001 | Q51: РСО | R51: /Электроэнергетика/Передача ЭЭ/РСО | S51: Y
A52: 51 | B52: 2599 | C52: Смоленская область | H52: 27954259 | I52: ПАО "ФСК ЕЭС" | J52: 4716016979 | K52: 997450001 | Q52: РСО | R52: /Электроэнергетика/Передача ЭЭ/РСО | S52: Y
A53: 52 | B53: 2599 | C53: Смоленская область | H53: 27651553 | I53: Смоленское областное отделение филиала "Центральный" | J53: 7704731218 | K53: 673245001 | Q53: Нерегулируемый сбыт | R53: /Электроэнергетика/Сбыт ЭЭ/Нерегулируемый сбыт | S53: Y
A54: 53 | B54: 2599 | C54: Смоленская область | H54: 26361217 | I54: Филиал "Смоленская ГРЭС" ПАО "Юнипро" | J54: 8602067092 | K54: 670502001 | Q54: Комбинированная выработка :: Некомбинированная выработка | R54: /Электроэнергетика/Производство ЭЭ/Комбинированная выработка :: /Электроэнергетика/Производство ЭЭ/Некомбинированная выработка | S54: Y
A55: 54 | B55: 2599 | C55: Смоленская область | H55: 30853677 | I55: Филиал «СмоленскАтомЭнергоСбыт» АО «АтомЭнергоСбыт» | J55: 7704228075 | K55: 673243001 | Q55: ГП | R55: /Электроэнергетика/Сбыт ЭЭ/ГП | S55: Y
A56: 55 | B56: 2599 | C56: Смоленская область | H56: 27301763 | I56: Филиал «Юго-Западный» АО «Оборонэнерго» | J56: 7704726225 | K56: 575243001 | Q56: РСО | R56: /Электроэнергетика/Передача ЭЭ/РСО | S56: Y
A57: 56 | B57: 2599 | C57: Смоленская область | H57: 26445955 | I57: Филиал АО "Концерн Росэнергоатом" "Смоленская атомная станция" | J57: 7721632827 | K57: 672443001 | Q57: Комбинированная выработка | R57: /Электроэнергетика/Производство ЭЭ/Комбинированная выработка | S57: Y
A58: 57 | B58: 2599 | C58: Смоленская область | H58: 26447259 | I58: Филиал ПАО "Квадра" - "Смоленская генерация" | J58: 6829012680 | K58: 673243001 | Q58: Комбинированная выработка :: Некомбинированная выработка | R58: /Электроэнергетика/Производство ЭЭ/Комбинированная выработка :: /Электроэнергетика/Производство ЭЭ/Некомбинированная выработка | S58: Y
A59: 58 | B59: 2599 | C59: Смоленская область | H59: 26513518 | I59: Центральный филиал ООО «Газпром энерго» | J59: 7736186950 | K59: 504343001 | L59: 07-02-2006 00:00:00 | Q59: РСО | R59: /Электроэнергетика/Передача ЭЭ/РСО | S59: Y

Sheet REESTR_FIL (hidden)
A1: МР | B1: МО | C1: МО_ОКТМО | D1: МР | E1: ИМЯ ДИАПАЗОНА

Sheet REESTR_MO (hidden)
A1: МР | B1: МО | C1: МО_ОКТМО | D1: МО_ТИП | E1: МР | F1: ИМЯ ДИАПАЗОНА
A2: Велижский муниципальный район | B2: Беляевское | C2: 66603410 | D2: сельское поселение | E2: Велижский муниципальный район | F2: MO_LIST_2
A3: Велижский муниципальный район | B3: Будницкое | C3: 66603415 | D3: сельское поселение | E3: Вяземский муниципальный район | F3: MO_LIST_3
A4: Велижский муниципальный район | B4: Велижский муниципальный район | C4: 66603000 | D4: муниципальный район | E4: Гагаринский муниципальный район | F4: MO_LIST_4
A5: Велижский муниципальный район | B5: Велижское | C5: 66603101 | D5: городское поселение, в состав которого входит город | E5: Глинковский муниципальный район | F5: MO_LIST_5
A6: Велижский муниципальный район | B6: Заозерское | C6: 66603420 | D6: сельское поселение | E6: Город Десногорск | F6: MO_LIST_6
A7: Велижский муниципальный район | B7: Крутовское | C7: 66603480 | D7: сельское поселение | E7: Город Смоленск | F7: MO_LIST_7
A8: Велижский муниципальный район | B8: Печенковское | C8: 66603460 | D8: сельское поселение | E8: Демидовский муниципальный район | F8: MO_LIST_8
A9: Велижский муниципальный район | B9: Погорельское | C9: 66603450 | D9: сельское поселение | E9: Дорогобужский муниципальный район | F9: MO_LIST_9
A10: Велижский муниципальный район | B10: Селезневское | C10: 66603470 | D10: сельское поселение | E10: Духовщинский муниципальный район | F10: MO_LIST_10
A11: Велижский муниципальный район | B11: Ситьковское | C11: 66603440 | D11: сельское поселение | E11: Ельнинский муниципальный район | F11: MO_LIST_11
A12: Вяземский муниципальный район | B12: Андрейковское | C12: 66605404 | D12: сельское поселение | E12: Ершичский муниципальный район | F12: MO_LIST_12
A13: Вяземский муниципальный район | B13: Вяземский муниципальный район | C13: 66605000 | D13: муниципальный район | E13: Кардымовский муниципальный район | F13: MO_LIST_13
A14: Вяземский муниципальный район | B14: Вяземское | C14: 66605101 | D14: городское поселение, в состав которого входит город | E14: Краснинский муниципальный район | F14: MO_LIST_14
A15: Вяземский муниципальный район | B15: Вязьма-Брянское сельское поселение | C15: 66605408 | D15: сельское поселение | E15: Монастырщинский муниципальный район | F15: MO_LIST_15
A16: Вяземский муниципальный район | B16: Кайдаковское | C16: 66605436 | D16: сельское поселение | E16: Новодугинский муниципальный район | F16: MO_LIST_16
A17: Вяземский муниципальный район | B17: Новосельское | C17: 66605456 | D17: сельское поселение | E17: Починковский муниципальный район | F17: MO_LIST_17
A18: Вяземский муниципальный район | B18: Семлевское | C18: 66605472 | D18: сельское поселение | E18: Рославльский муниципальный район | F18: MO_LIST_18
A19: Вяземский муниципальный район | B19: Степаниковское | C19: 66605476 | D19: сельское поселение | E19: Руднянский муниципальный район | F19: MO_LIST_19
A20: Вяземский муниципальный район | B20: Тумановское | C20: 66605480 | D20: сельское поселение | E20: Сафоновский муниципальный район | F20: MO_LIST_20
A21: Гагаринский муниципальный район | B21: Акатовское | C21: 66608404 | D21: сельское поселение | E21: Смоленский муниципальный район | F21: MO_LIST_21
A22: Гагаринский муниципальный район | B22: Ашковское | C22: 66608460 | D22: сельское поселение | E22: Сычевский муниципальный район | F22: MO_LIST_22
A23: Гагаринский муниципальный район | B23: Баскаковское | C23: 66608408 | D23: сельское поселение | E23: Темкинский муниципальный район | F23: MO_LIST_23
A24: Гагаринский муниципальный район | B24: Гагаринский муниципальный район | C24: 66608000 | D24: муниципальный район | E24: Угранский муниципальный район | F24: MO_LIST_24
A25: Гагаринский муниципальный район | B25: Гагаринское | C25: 66608101 | D25: городское поселение, в состав которого входит город | E25: Хиславичский муниципальный район | F25: MO_LIST_25
A26: Гагаринский муниципальный район | B26: Гагаринское сельское поселение | C26: 66608416 | D26: сельское поселение | E26: Холм-Жирковский муниципальный район | F26: MO_LIST_26
A27: Гагаринский муниципальный район | B27: Ельнинское | C27: 66608480 | D27: сельское поселение | E27: Шумячский муниципальный район | F27: MO_LIST_27
A28: Гагаринский муниципальный район | B28: Кармановское | C28: 66608424 | D28: сельское поселение | E28: Ярцевский муниципальный район | F28: MO_LIST_28
A29: Гагаринский муниципальный район | B29: Мальцевское | C29: 66608412 | D29: сельское поселение
A30: Гагаринский муниципальный район | B30: Никольское | C30: 66608456 | D30: сельское поселение
A31: Гагаринский муниципальный район | B31: Покровское | C31: 66608448 | D31: сельское поселение
A32: Гагаринский муниципальный район | B32: Потаповское | C32: 66608462 | D32: сельское поселение
A33: Гагаринский муниципальный район | B33: Пречистенское | C33: 66608464 | D33: сельское поселение
A34: Гагаринский муниципальный район | B34: Родомановское | C34: 66608444 | D34: сельское поселение
A35: Гагаринский муниципальный район | B35: Самуйловское | C35: 66608468 | D35: сельское поселение
A36: Гагаринский муниципальный район | B36: Серго-Ивановское | C36: 66608472 | D36: сельское поселение
A37: Гагаринский муниципальный район | B37: Токаревское | C37: 66608476 | D37: сельское поселение
A38: Глинковский муниципальный район | B38: Белохолмское | C38: 66609406 | D38: сельское поселение
A39: Глинковский муниципальный район | B39: Бердниковское | C39: 66609408 | D39: сельское поселение
A40: Глинковский муниципальный район | B40: Болтутинское | C40: 66609403 | D40: сельское поселение
A41: Глинковский муниципальный район | B41: Глинковский муниципальный район | C41: 66609000 | D41: муниципальный район
A42: Глинковский муниципальный район | B42: Глинковское | C42: 66609411 | D42: сельское поселение
A43: Глинковский муниципальный район | B43: Доброминское | C43: 66609414 | D43: сельское поселение
A44: Глинковский муниципальный район | B44: Ромодановское | C44: 66609430 | D44: сельское поселение
A45: Город Десногорск | B45: Город Десногорск | C45: 66710000 | D45: городской округ
A46: Город Смоленск | B46: Город Смоленск | C46: 66701000 | D46: городской округ
A47: Демидовский муниципальный район | B47: Борковское | C47: 66611410 | D47: сельское поселение
A48: Демидовский муниципальный район | B48: Демидовский муниципальный район | C48: 66611000 | D48: муниципальный район
A49: Демидовский муниципальный район | B49: Демидовское | C49: 66611101 | D49: городское поселение, в состав которого входит город
A50: Демидовский муниципальный район | B50: Заборьевское | C50: 66611445 | D50: сельское поселение
A51: Демидовский муниципальный район | B51: Пржевальское | C51: 66611153 | D51: городское поселение, в состав которого входит поселок
A52: Демидовский муниципальный район | B52: Слободское | C52: 66611487 | D52: сельское поселение
A53: Демидовский муниципальный район | B53: Титовщинское | C53: 66611490 | D53: сельское поселение
A54: Дорогобужский муниципальный район | B54: Алексинское | C54: 66614405 | D54: сельское поселение
A55: Дорогобужский муниципальный район | B55: Верхнеднепровское | C55: 66614153 | D55: городское поселение, в состав которого входит поселок
A56: Дорогобужский муниципальный район | B56: Дорогобужский муниципальный район | C56: 66614000 | D56: муниципальный район
A57: Дорогобужский муниципальный район | B57: Дорогобужское | C57: 66614101 | D57: городское поселение, в состав которого входит город
A58: Дорогобужский муниципальный район | B58: Михайловское | C58: 66614440 | D58: сельское поселение
A59: Дорогобужский муниципальный район | B59: Усвятское | C59: 66614465 | D59: сельское поселение
A60: Духовщинский муниципальный район | B60: Бабинское | C60: 66616404 | D60: сельское поселение
A61: Духовщинский муниципальный район | B61: Бересневское | C61: 66616407 | D61: сельское поселение
A62: Духовщинский муниципальный район | B62: Булгаковское | C62: 66616412 | D62: сельское поселение
A63: Духовщинский муниципальный район | B63: Добринское | C63: 66616424 | D63: сельское поселение
A64: Духовщинский муниципальный район | B64: Духовщинский муниципальный район | C64: 66616000 | D64: муниципальный район
A65: Духовщинский муниципальный район | B65: Духовщинское | C65: 66616101 | D65: городское поселение, в состав которого входит город
A66: Духовщинский муниципальный район | B66: Озерненское | C66: 66616155 | D66: городское поселение, в состав которого входит поселок
A67: Духовщинский муниципальный район | B67: Пречистенское сельское поселение | C67: 66616448 | D67: сельское поселение
A68: Духовщинский муниципальный район | B68: Третьяковское | C68: 66616468 | D68: сельское поселение
A69: Ельнинский муниципальный район | B69: Бобровичское | C69: 66619416 | D69: сельское поселение
A70: Ельнинский муниципальный район | B70: Ельнинский муниципальный район | C70: 66619000 | D70: муниципальный район
A71: Ельнинский муниципальный район | B71: Ельнинское городское поселение | C71: 66619101 | D71: городское поселение, в состав которого входит город
A72: Ельнинский муниципальный район | B72: Коробецкое | C72: 66619440 | D72: сельское поселение
A73: Ельнинский муниципальный район | B73: Леонидовское | C73: 66619452 | D73: сельское поселение
A74: Ершичский муниципальный район | B74: Воргинское | C74: 66621414 | D74: сельское поселение
A75: Ершичский муниципальный район | B75: Ершичский муниципальный район | C75: 66621000 | D75: муниципальный район
A76: Ершичский муниципальный район | B76: Ершичское | C76: 66621433 | D76: сельское поселение
A77: Ершичский муниципальный район | B77: Кузьмичское | C77: 66621444 | D77: сельское поселение
A78: Ершичский муниципальный район | B78: Руханское | C78: 66621466 | D78: сельское поселение
A79: Кардымовский муниципальный район | B79: Березкинское | C79: 66623412 | D79: сельское поселение
A80: Кардымовский муниципальный район | B80: Каменское | C80: 66623410 | D80: сельское поселение
A81: Кардымовский муниципальный район | B81: Кардымовский муниципальный район | C81: 66623000 | D81: муниципальный район
A82: Кардымовский муниципальный район | B82: Кардымовское | C82: 66623151 | D82: городское поселение, в состав которого входит поселок
A83: Кардымовский муниципальный район | B83: Мольковское | C83: 66623418 | D83: сельское поселение
A84: Кардымовский муниципальный район | B84: Нетризовское | C84: 66623422 | D84: сельское поселение
A85: Кардымовский муниципальный район | B85: Первомайское | C85: 66623426 | D85: сельское поселение
A86: Кардымовский муниципальный район | B86: Соловьевское | C86: 66623430 | D86: сельское поселение
A87: Кардымовский муниципальный район | B87: Тюшинское | C87: 66623432 | D87: сельское поселение
A88: Кардымовский муниципальный район | B88: Шокинское | C88: 66623428 | D88: сельское поселение
A89: Краснинский муниципальный район | B89: Гусинское | C89: 66624430 | D89: сельское поселение
A90: Краснинский муниципальный район | B90: Краснинский муниципальный район | C90: 66624000 | D90: муниципальный район
A91: Краснинский муниципальный район | B91: Краснинское | C91: 66624151 | D91: городское поселение, в состав которого входит поселок
A92: Краснинский муниципальный район | B92: Малеевское | C92: 66624445 | D92: сельское поселение
A93: Краснинский муниципальный район | B93: Мерлинское | C93: 66624455 | D93: сельское поселение
A94: Монастырщинский муниципальный район | B94: Александровское | C94: 66627405 | D94: сельское поселение
A95: Монастырщинский муниципальный район | B95: Барсуковское | C95: 66627410 | D95: сельское поселение
A96: Монастырщинский муниципальный район | B96: Гоголевское | C96: 66627420 | D96: сельское поселение
A97: Монастырщинский муниципальный район | B97: Монастырщинский | C97: 66627151 | D97: городское поселение, в состав которого входит поселок
A98: Монастырщинский муниципальный район | B98: Монастырщинский муниципальный район | C98: 66627000 | D98: муниципальный район
A99: Монастырщинский муниципальный район | B99: Новомихайловское | C99: 66627460 | D99: сельское поселение
A100: Монастырщинский муниципальный район | B100: Соболевское | C100: 66627480 | D100: сельское поселение
A101: Монастырщинский муниципальный район | B101: Татарское | C101: 66627475 | D101: сельское поселение
A102: Новодугинский муниципальный район | B102: Высоковское | C102: 66630410 | D102: сельское поселение
A103: Новодугинский муниципальный район | B103: Днепровское | C103: 66630415 | D103: сельское поселение
A104: Новодугинский муниципальный район | B104: Извековское | C104: 66630420 | D104: сельское поселение
A105: Новодугинский муниципальный район | B105: Новодугинский муниципальный район | C105: 66630000 | D105: муниципальный район
A106: Новодугинский муниципальный район | B106: Новодугинское | C106: 66630435 | D106: сельское поселение
A107: Новодугинский муниципальный район | B107: Тесовское | C107: 66630440 | D107: сельское поселение
A108: Починковский муниципальный район | B108: Васьковское | C108: 66633415 | D108: сельское поселение
A109: Починковский муниципальный район | B109: Даньковское | C109: 66633422 | D109: сельское поселение
A110: Починковский муниципальный район | B110: Ивановское | C110: 66633425 | D110: сельское поселение
A111: Починковский муниципальный район | B111: Климщинское | C111: 66633430 | D111: сельское поселение
A112: Починковский муниципальный район | B112: Княжинское | C112: 66633435 | D112: сельское поселение
A113: Починковский муниципальный район | B113: Краснознаменское | C113: 66633440 | D113: сельское поселение
A114: Починковский муниципальный район | B114: Ленинское | C114: 66633445 | D114: сельское поселение
A115: Починковский муниципальный район | B115: Лосненское | C115: 66633447 | D115: сельское поселение
A116: Починковский муниципальный район | B116: Лысовское | C116: 66633449 | D116: сельское поселение
A117: Починковский муниципальный район | B117: Мурыгинское | C117: 66633450 | D117: сельское поселение
A118: Починковский муниципальный район | B118: Переснянское | C118: 66633455 | D118: сельское поселение
A119: Починковский муниципальный район | B119: Починковский муниципальный район | C119: 66633000 | D119: муниципальный район
A120: Починковский муниципальный район | B120: Починковское | C120: 66633101 | D120: городское поселение, в состав которого входит город
A121: Починковский муниципальный район | B121: Прудковское | C121: 66633465 | D121: сельское поселение
A122: Починковский муниципальный район | B122: Стодолищенское | C122: 66633485 | D122: сельское поселение
A123: Починковский муниципальный район | B123: Стригинское | C123: 66633490 | D123: сельское поселение
A124: Починковский муниципальный район | B124: Шаталовское | C124: 66633495 | D124: сельское поселение
A125: Починковский муниципальный район | B125: Шмаковское | C125: 66633497 | D125: сельское поселение
A126: Рославльский муниципальный район | B126: Астапковичское | C126: 66636408 | D126: сельское поселение
A127: Рославльский муниципальный район | B127: Богдановское | C127: 66636412 | D127: сельское поселение
A128: Рославльский муниципальный район | B128: Волковичское | C128: 66636404 | D128: сельское поселение
A129: Рославльский муниципальный район | B129: Грязенятское | C129: 66636420 | D129: сельское поселение
A130: Рославльский муниципальный район | B130: Екимовичское | C130: 66636430 | D130: сельское поселение
A131: Рославльский муниципальный район | B131: Епишевское | C131: 66636434 | D131: сельское поселение
A132: Рославльский муниципальный район | B132: Жарынское | C132: 66636438 | D132: сельское поселение
A133: Рославльский муниципальный район | B133: Ивановское сельское поселение | C133: 66636427 | D133: сельское поселение
A134: Рославльский муниципальный район | B134: Кирилловское | C134: 66636442 | D134: сельское поселение
A135: Рославльский муниципальный район | B135: Костыревское | C135: 66636446 | D135: сельское поселение
A136: Рославльский муниципальный район | B136: Крапивенское | C136: 66636453 | D136: сельское поселение
A137: Рославльский муниципальный район | B137: Лесниковское | C137: 66636458 | D137: сельское поселение
A138: Рославльский муниципальный район | B138: Липовское | C138: 66636460 | D138: сельское поселение
A139: Рославльский муниципальный район | B139: Любовское | C139: 66636462 | D139: сельское поселение
A140: Рославльский муниципальный район | B140: Остерское | C140: 66636470 | D140: сельское поселение
A141: Рославльский муниципальный район | B141: Перенское | C141: 66636472 | D141: сельское поселение
A142: Рославльский муниципальный район | B142: Пригорьевское | C142: 66636476 | D142: сельское поселение
A143: Рославльский муниципальный район | B143: Рославльский муниципальный район | C143: 66636000 | D143: муниципальный район
A144: Рославльский муниципальный район | B144: Рославльское | C144: 66636101 | D144: городское поселение, в состав которого входит город
A145: Рославльский муниципальный район | B145: Рославльское сельское поселение | C145: 66636480 | D145: сельское поселение
A146: Рославльский муниципальный район | B146: Савеевское | C146: 66636484 | D146: сельское поселение
A147: Рославльский муниципальный район | B147: Сырокоренское | C147: 66636488 | D147: сельское поселение
A148: Рославльский муниципальный район | B148: Хорошовское | C148: 66636492 | D148: сельское поселение
A149: Руднянский муниципальный район | B149: Голынковское | C149: 66638153 | D149: городское поселение, в состав которого входит поселок
A150: Руднянский муниципальный район | B150: Казимировское | C150: 66638495 | D150: сельское поселение
A151: Руднянский муниципальный район | B151: Кляриновское | C151: 66638433 | D151: сельское поселение
A152: Руднянский муниципальный район | B152: Кругловское | C152: 66638438 | D152: сельское поселение
A153: Руднянский муниципальный район | B153: Любавичское сельское поселение | C153: 66638450 | D153: сельское поселение
A154: Руднянский муниципальный район | B154: Переволочское | C154: 66638460 | D154: сельское поселение
A155: Руднянский муниципальный район | B155: Понизовское | C155: 66638475 | D155: сельское поселение
A156: Руднянский муниципальный район | B156: Руднянский муниципальный район | C156: 66638000 | D156: муниципальный район
A157: Руднянский муниципальный район | B157: Руднянское | C157: 66638101 | D157: городское поселение, в состав которого входит город
A158: Руднянский муниципальный район | B158: Смолиговское | C158: 66638415 | D158: сельское поселение
A159: Руднянский муниципальный район | B159: Чистиковское | C159: 66638494 | D159: сельское поселение
A160: Сафоновский муниципальный район | B160: Барановское | C160: 66641410 | D160: сельское поселение
A161: Сафоновский муниципальный район | B161: Беленинское | C161: 66641415 | D161: сельское поселение
A162: Сафоновский муниципальный район | B162: Богдановщинское | C162: 66641430 | D162: сельское поселение
A163: Сафоновский муниципальный район | B163: Вадинское | C163: 66641417 | D163: сельское поселение
A164: Сафоновский муниципальный район | B164: Васильевское | C164: 66641420 | D164: сельское поселение
A165: Сафоновский муниципальный район | B165: Вышегорское | C165: 66641425 | D165: сельское поселение
A166: Сафоновский муниципальный район | B166: Дроздовское | C166: 66641435 | D166: сельское поселение
A167: Сафоновский муниципальный район | B167: Дуровское | C167: 66641440 | D167: сельское поселение
A168: Сафоновский муниципальный район | B168: Зимницкое | C168: 66641445 | D168: сельское поселение
A169: Сафоновский муниципальный район | B169: Игнатковское | C169: 66641455 | D169: сельское поселение
A170: Сафоновский муниципальный район | B170: Издешковское | C170: 66641457 | D170: сельское поселение
A171: Сафоновский муниципальный район | B171: Казулинское | C171: 66641460 | D171: сельское поселение
A172: Сафоновский муниципальный район | B172: Николо-Погореловское | C172: 66641470 | D172: сельское поселение
A173: Сафоновский муниципальный район | B173: Прудковское сельское поселение | C173: 66641475 | D173: сельское поселение
A174: Сафоновский муниципальный район | B174: Пушкинское | C174: 66641480 | D174: сельское поселение
A175: Сафоновский муниципальный район | B175: Рыбковское | C175: 66641495 | D175: сельское поселение
A176: Сафоновский муниципальный район | B176: Сафоновский | C176: 66641101 | D176: городское поселение, в состав которого входит город
A177: Сафоновский муниципальный район | B177: Сафоновский муниципальный район | C177: 66641000 | D177: муниципальный район
A178: Сафоновский муниципальный район | B178: Старосельское | C178: 66641485 | D178: сельское поселение
A179: Смоленский муниципальный район | B179: Волоковское | C179: 66644415 | D179: сельское поселение
A180: Смоленский муниципальный район | B180: Вязгинское | C180: 66644417 | D180: сельское поселение
A181: Смоленский муниципальный район | B181: Гнездовское сельское поселение | C181: 66644421 | D181: сельское поселение
A182: Смоленский муниципальный район | B182: Дивасовское | C182: 66644424 | D182: сельское поселение
A183: Смоленский муниципальный район | B183: Касплянское | C183: 66644433 | D183: сельское поселение
A184: Смоленский муниципальный район | B184: Катынское | C184: 66644436 | D184: сельское поселение
A185: Смоленский муниципальный район | B185: Козинское | C185: 66644439 | D185: сельское поселение
A186: Смоленский муниципальный район | B186: Корохоткинское | C186: 66644442 | D186: сельское поселение
A187: Смоленский муниципальный район | B187: Кощинское | C187: 66644445 | D187: сельское поселение
A188: Смоленский муниципальный район | B188: Лоинское | C188: 66644454 | D188: сельское поселение
A189: Смоленский муниципальный район | B189: Михновское | C189: 66644465 | D189: сельское поселение
A190: Смоленский муниципальный район | B190: Новосельское сельское поселение | C190: 66644406 | D190: сельское поселение
A191: Смоленский муниципальный район | B191: Печерское | C191: 66644474 | D191: сельское поселение
A192: Смоленский муниципальный район | B192: Пионерское | C192: 66644476 | D192: сельское поселение
A193: Смоленский муниципальный район | B193: Пригорское | C193: 66644482 | D193: сельское поселение
A194: Смоленский муниципальный район | B194: Сметанинское | C194: 66644484 | D194: сельское поселение
A195: Смоленский муниципальный район | B195: Смоленский муниципальный район | C195: 66644000 | D195: муниципальный район
A196: Смоленский муниципальный район | B196: Стабенское | C196: 66644486 | D196: сельское поселение
A197: Смоленский муниципальный район | B197: Талашкинское | C197: 66644492 | D197: сельское поселение
A198: Смоленский муниципальный район | B198: Хохловское | C198: 66644498 | D198: сельское поселение
A199: Сычевский муниципальный район | B199: Дугинское | C199: 66646470 | D199: сельское поселение
A200: Сычевский муниципальный район | B200: Караваевское | C200: 66646425 | D200: сельское поселение
... 58 more rows

Sheet REESTR_EGRUL (hidden)

Sheet modfrmRegion (hidden)

Sheet modfrmReestr (hidden)

Sheet modfrmFindEGRUL (hidden)

Sheet modfrmCheckUpdates (hidden)

Sheet modReestr (hidden)

Sheet modUpdTemplMain (hidden)

Sheet modHyperlink (hidden)

Sheet modClassifierValidate (hidden)
